bitfinex/quotes_SOLUSD_20250624
["timestamp","ask_amount","ask_price","bid_price","bid_amount"]
[1750740064968,3.67121069,143.5,143.49,38.34]
[1750740066254,5.72854245,143.5,143.49,38.34]
[1750740068962,31.72854245,143.5,143.49,38.34]
[1750740069169,5.72854245,143.5,143.49,38.34]
[1750740070478,31.72854245,143.5,143.49,38.34]
[1750740070875,31.72854245,143.5,143.49,28.34]
[1750740071081,31.72854245,143.5,143.48,38.34]
[1750740071382,26.0,143.5,143.49,10.0]
[1750740072463,31.72854245,143.5,143.49,10.0]
[1750740076789,31.72854245,143.5,143.48,38.32]
[1750740076994,5.72854245,143.49,143.48,38.32]
[1750740077281,5.72854245,143.49,143.48,28.32]
[1750740077467,5.72854245,143.49,143.48,38.32]
[1750740078355,5.72854245,143.49,143.48,10.0]
[1750740078562,26.0,143.5,143.48,10.0]
[1750740078861,5.72854245,143.49,143.48,10.0]
[1750740079055,5.72854245,143.49,143.47,38.34]
[1750740079267,31.72854245,143.48,143.47,38.34]
[1750740083185,31.72854245,143.49,143.47,38.34]
[1750740083363,31.72854245,143.49,143.48,10.0]
[1750740085286,31.72854245,143.5,143.49,10.0]
[1750740085489,31.72854245,143.5,143.49,38.32]
[1750740086664,31.72854245,143.5,143.49,28.32]
[1750740086864,31.72854245,143.5,143.49,38.32]
[1750740088285,29.66721302,143.5,143.49,38.32]
[1750740090691,29.66721302,143.5,143.49,28.32]
[1750740090901,29.66721302,143.5,143.49,38.32]
[1750740091773,26.0,143.5,143.49,38.32]
[1750740091973,29.66721302,143.5,143.49,38.32]
[1750740094003,3.66721302,143.5,143.49,38.32]
[1750740094872,29.66721302,143.5,143.49,38.32]
[1750740098998,3.66721302,143.5,143.49,38.32]
[1750740099210,29.66721302,143.5,143.49,38.32]
[1750740104700,26.0,143.52,143.5,10.0]
[1750740104881,26.0,143.52,143.51,38.32]
[1750740106203,29.66721302,143.52,143.51,38.32]
[1750740107611,29.66721302,143.52,143.51,28.32]
[1750740107908,29.66721302,143.52,143.51,38.32]
[1750740116003,29.66721302,143.52,143.51,10.0]
[1750740120906,26.0,143.51,143.49,38.3]
[1750740121107,26.0,143.49,143.47,10.0]
[1750740121407,3.66721302,143.48,143.47,10.0]
[1750740127091,3.66721302,143.48,143.45,16.02]
[1750740127308,3.66721302,143.46,143.45,16.02]
[1750740129991,29.66721302,143.47,143.45,16.02]
[1750740130206,29.66721302,143.47,143.46,10.0]
[1750740134903,3.66721302,143.47,143.46,10.0]
[1750740136523,3.66721302,143.48,143.47,10.0]
[1750740136824,3.66721302,143.49,143.48,10.0]
[1750740138927,29.66721302,143.5,143.49,10.0]
[1750740139123,3.66721302,143.5,143.49,10.0]
[1750740157439,29.66721302,143.51,143.49,10.0]
[1750740158441,29.66721302,143.51,143.5,10.0]
[1750740159641,3.66721302,143.52,143.5,10.0]
[1750740159946,43.1966121,143.54,143.52,10.0]
[1750740160244,26.0,143.52,143.51,10.0]
[1750740161237,29.66721302,143.52,143.51,10.0]
[1750740162032,26.0,143.52,143.51,10.0]
[1750740162373,29.66721302,143.52,143.51,10.0]
[1750740163324,26.0,143.52,143.51,10.0]
[1750740163545,29.66721302,143.52,143.51,10.0]
[1750740166835,29.66721302,143.52,143.5,10.0]
[1750740167150,26.0,143.48,143.47,10.0]
[1750740167359,29.66721302,143.48,143.47,10.0]
[1750740167926,3.66721302,143.48,143.45,10.0]
[1750740168156,26.0,143.5,143.45,10.0]
[1750740168157,3.66721302,143.46,143.45,10.0]
[1750740178644,26.0,143.49,143.45,10.0]
[1750740178844,3.66721302,143.46,143.45,10.0]
[1750740181069,26.0,143.47,143.45,10.0]
[1750740181273,26.0,143.47,143.46,10.0]
[1750740181475,29.66721302,143.47,143.46,10.0]
[1750740186375,26.0,143.47,143.46,10.0]
[1750740186564,29.66721302,143.47,143.46,10.0]
[1750740186870,3.66721302,143.47,143.46,10.0]
[1750740189389,26.0,143.49,143.47,10.0]
[1750740189549,3.66721302,143.48,143.47,10.0]
[1750740189755,3.66721302,143.48,143.46,10.0]
[1750740189983,26.0,143.49,143.47,10.0]
[1750740191079,3.66721302,143.48,143.47,10.0]
[1750740198489,3.66721302,143.48,143.46,10.0]
[1750740198682,3.66721302,143.47,143.46,10.0]
[1750740205706,26.0,143.49,143.46,10.0]
[1750740206004,3.66721302,143.47,143.46,10.0]
[1750740207096,3.66721302,143.47,143.46,2.49998999]
[1750740208389,3.66721302,143.48,143.46,2.49998999]
[1750740208591,3.66721302,143.48,143.47,2.49998999]
[1750740211107,29.66721302,143.49,143.48,2.49998999]
[1750740211285,3.66721302,143.49,143.48,2.49998999]
[1750740213584,34.06793326,143.52,143.48,2.49998999]
[1750740213904,3.66721302,143.49,143.48,2.49998999]
[1750740214412,29.66721302,143.49,143.48,2.49998999]
[1750740215088,3.66721302,143.49,143.48,2.49998999]
[1750740215906,26.0,143.5,143.49,2.49998999]
[1750740216091,29.66721302,143.5,143.49,2.49998999]
[1750740219890,3.66721302,143.5,143.49,2.49998999]
[1750740221128,3.66721302,143.5,143.48,2.49998999]
[1750740221421,3.66721302,143.49,143.48,2.49998999]
[1750740222897,29.66721302,143.49,143.48,2.49998999]
[1750740232130,26.0,143.48,143.47,2.49998999]
[1750740232506,29.66721302,143.48,143.47,2.49998999]
[1750740234322,29.66721302,143.48,143.46,2.49998999]
[1750740234631,29.66721302,143.47,143.46,2.49998999]
[1750740236104,26.0,143.46,143.43,2.49998999]
[1750740236301,3.66721302,143.44,143.42,2.49998999]
[1750740236536,26.0,143.42,143.41,2.49998999]
[1750740236848,29.66721302,143.42,143.41,2.49998999]
[1750740237055,26.0,143.41,143.38,2.49998999]
[1750740237202,3.66721302,143.39,143.38,2.49998999]
[1750740237710,3.66721302,143.39,143.37,2.49998999]
[1750740237911,3.66721302,143.38,143.37,2.49998999]
[1750740238216,5.73951522,143.38,143.36,8.47998999]
[1750740238421,5.73951522,143.37,143.36,8.47998999]
[1750740240640,26.0,143.41,143.38,2.49998999]
[1750740240641,26.0,143.4,143.38,2.49998999]
[1750740240806,31.73951522,143.39,143.38,2.49998999]
[1750740242843,31.73951522,143.39,143.36,2.49998999]
[1750740243127,5.73951522,143.37,143.36,2.49998999]
[1750740245911,5.73951522,143.37,143.33,2.49998999]
[1750740246125,26.0,143.38,143.36,2.49998999]
[1750740246335,5.73951522,143.37,143.36,2.49998999]
[1750740248025,5.73951522,143.37,143.35,2.49998999]
[1750740248216,5.73951522,143.37,143.36,2.49998999]
[1750740253537,26.0,143.39,143.36,2.49998999]
[1750740253740,5.73951522,143.37,143.36,2.49998999]
[1750740256044,26.0,143.38,143.36,2.49998999]
[1750740256230,5.73951522,143.37,143.36,2.49998999]
[1750740257041,5.73951522,143.4,143.38,2.49998999]
[1750740257222,31.73951522,143.4,143.39,2.49998999]
[1750740257730,5.73951522,143.4,143.39,2.49998999]
[1750740274236,3.67188131,143.4,143.39,2.49998999]
[1750740275063,3.67188131,143.42,143.4,2.49998999]
[1750740275363,3.67188131,143.42,143.41,2.49998999]
[1750740276241,5.73535681,143.42,143.41,2.49998999]
[1750740284377,26.0,143.44,143.41,2.49998999]
[1750740284551,5.73535681,143.43,143.42,2.49998999]
[1750740286984,26.0,143.45,143.43,2.49998999]
[1750740287277,5.73535681,143.44,143.43,2.49998999]
[1750740288371,5.73535681,143.44,143.42,2.49998999]
[1750740288551,5.73535681,143.44,143.43,2.49998999]
[1750740290285,26.0,143.45,143.43,2.49998999]
[1750740290453,5.73535681,143.44,143.43,2.49998999]
[1750740292578,5.73535681,143.44,143.42,2.49998999]
[1750740292783,26.0,143.45,143.43,2.49998999]
[1750740293082,5.73535681,143.44,143.43,2.49998999]
[1750740293781,31.73535681,143.45,143.43,2.49998999]
[1750740293984,5.73535681,143.46,143.45,2.49998999]
[1750740296285,29.6688493,143.46,143.45,2.49998999]
[1750740301479,29.6688493,143.46,143.44,2.49998999]
[1750740301679,3.6688493,143.45,143.44,2.49998999]
[1750740306090,26.0,143.44,143.43,2.49998999]
[1750740306399,29.6688493,143.44,143.42,2.49998999]
[1750740306576,3.6688493,143.43,143.42,2.49998999]
[1750740308780,3.6688493,143.43,143.41,2.49998999]
[1750740308978,26.0,143.43,143.42,2.49998999]
[1750740309291,29.6688493,143.43,143.41,2.49998999]
[1750740310006,3.6688493,143.42,143.41,2.49998999]
[1750740310201,26.0,143.41,143.4,2.49998999]
[1750740310409,29.6688493,143.41,143.4,2.49998999]
[1750740310581,29.6688493,143.41,143.39,2.49998999]
[1750740310795,26.0,143.41,143.4,2.49998999]
[1750740311881,29.6688493,143.41,143.4,2.49998999]
[1750740312414,31.7373047,143.41,143.4,2.49998999]
[1750740313103,5.7373047,143.42,143.41,2.49998999]
[1750740318986,5.7373047,143.42,143.38,2.49998999]
[1750740319191,5.7373047,143.39,143.38,2.49998999]
[1750740320085,5.7373047,143.39,143.35,5.98]
[1750740320086,26.0,143.37,143.36,2.49998999]
[1750740320287,31.7373047,143.37,143.35,8.47998999]
[1750740320491,5.7373047,143.36,143.35,2.49998999]
[1750740321523,5.7373047,143.38,143.37,2.49998999]
[1750740322425,31.7373047,143.39,143.37,2.49998999]
[1750740324018,5.7373047,143.38,143.35,2.49998999]
[1750740324196,5.7373047,143.36,143.35,2.49998999]
[1750740326117,27.5572,143.39,143.35,2.49998999]
[1750740326422,5.7373047,143.36,143.35,2.49998999]
[1750740328817,31.7373047,143.36,143.35,2.49998999]
[1750740329822,31.7373047,143.36,143.34,2.49998999]
[1750740330024,5.7373047,143.35,143.34,2.49998999]
[1750740331527,31.7373047,143.36,143.35,2.49998999]
[1750740331703,5.7373047,143.36,143.35,2.49998999]
[1750740331904,5.7373047,143.37,143.36,2.49998999]
[1750740338834,26.0,143.4,143.37,2.49998999]
[1750740339029,26.0,143.4,143.38,2.49998999]
[1750740339233,5.7373047,143.39,143.38,2.49998999]
[1750740340740,26.0,143.41,143.39,2.49998999]
[1750740341038,5.7373047,143.4,143.39,2.49998999]
[1750740343825,31.7373047,143.41,143.39,2.49998999]
[1750740344033,31.7373047,143.41,143.4,2.49998999]
[1750740350341,3.67134621,143.41,143.4,2.49998999]
[1750740350521,26.0,143.43,143.41,2.49998999]
[1750740350721,3.67134621,143.42,143.41,2.49998999]
[1750740352025,26.0,143.41,143.4,2.49998999]
[1750740352351,29.67134621,143.41,143.4,2.49998999]
[1750740353949,26.0,143.41,143.4,2.49998999]
[1750740354125,3.67134621,143.42,143.41,2.49998999]
[1750740355228,3.67134621,143.42,143.4,2.49998999]
[1750740355428,3.67134621,143.42,143.41,2.49998999]
[1750740360727,29.67134621,143.42,143.41,2.49998999]
[1750740361353,29.67134621,143.42,143.4,2.49998999]
[1750740361553,3.67134621,143.41,143.4,2.49998999]
[1750740362440,29.67134621,143.41,143.38,2.49998999]
[1750740362644,3.67134621,143.39,143.38,2.49998999]
[1750740369066,29.67134621,143.39,143.36,2.49998999]
[1750740369260,3.67134621,143.37,143.36,2.49998999]
[1750740373066,26.0,143.36,143.35,2.49998999]
[1750740373358,3.67134621,143.36,143.34,2.49998999]
[1750740373973,3.67134621,143.35,143.34,2.49998999]
[1750740380686,26.0,143.37,143.34,2.49998999]
[1750740380864,3.67134621,143.37,143.34,2.49998999]
[1750740381296,3.67134621,143.36,143.34,2.49998999]
[1750740382473,3.67134621,143.36,143.35,2.49998999]
[1750740389496,26.0,143.39,143.35,2.49998999]
[1750740389790,26.0,143.39,143.36,2.49998999]
[1750740390795,3.67134621,143.37,143.36,2.49998999]
[1750740397194,3.67134621,143.37,143.35,2.49998999]
[1750740397495,26.0,143.39,143.36,2.49998999]
[1750740397798,3.67134621,143.37,143.36,2.49998999]
[1750740409219,26.0,143.39,143.36,2.49998999]
[1750740409515,3.67134621,143.37,143.36,2.49998999]
[1750740409810,29.67134621,143.37,143.36,2.49998999]
[1750740411114,3.67134621,143.37,143.36,2.49998999]
[1750740413209,26.0,143.38,143.36,2.49998999]
[1750740413210,29.67134621,143.38,143.36,2.49998999]
[1750740414411,29.67134621,143.38,143.37,2.49998999]
[1750740415619,3.67134621,143.4,143.39,2.49998999]
[1750740415826,3.67134621,143.41,143.4,2.49998999]
[1750740416532,29.67134621,143.41,143.4,2.49998999]
[1750740420717,3.67134621,143.41,143.4,2.49998999]
[1750740421102,26.0,143.43,143.42,2.49998999]
[1750740421316,29.67134621,143.43,143.42,2.49998999]
[1750740421496,3.67134621,143.44,143.43,2.49998999]
[1750740421697,26.0,143.44,143.43,2.49998999]
[1750740422628,3.67134621,143.46,143.45,2.49998999]
[1750740422835,18.38917625,143.47,143.46,2.49998999]
[1750740423511,1.6147,143.53,143.51,2.49998999]
[1750740423716,29.67134621,143.52,143.51,2.49998999]
[1750740424229,31.72775985,143.52,143.51,2.49998999]
[1750740428829,26.0,143.52,143.51,2.49998999]
[1750740429203,31.72775985,143.52,143.51,2.49998999]
[1750740431132,5.72775985,143.52,143.51,2.49998999]
[1750740433231,26.0,143.54,143.51,2.49998999]
[1750740433423,5.72775985,143.52,143.51,2.49998999]
[1750740436749,26.0,143.54,143.51,2.49998999]
[1750740436911,5.72775985,143.52,143.51,2.49998999]
[1750740439235,5.72775985,143.52,143.5,2.49998999]
[1750740439533,5.72775985,143.51,143.48,2.49998999]
[1750740439726,5.72775985,143.49,143.48,2.49998999]
[1750740442727,31.72775985,143.52,143.48,2.49998999]
[1750740442929,5.72775985,143.49,143.48,2.49998999]
[1750740446342,3.66728246,143.49,143.48,2.49998999]
[1750740447670,26.0,143.52,143.48,2.49998999]
[1750740447852,3.66728246,143.49,143.48,2.49998999]
[1750740454265,26.0,143.52,143.48,2.49998999]
[1750740454447,3.66728246,143.49,143.48,2.49998999]
[1750740456148,29.66728246,143.49,143.47,2.49998999]
[1750740456541,3.66728246,143.48,143.47,2.49998999]
[1750740456938,26.0,143.47,143.46,2.49998999]
[1750740457244,3.66728246,143.47,143.46,2.49998999]
[1750740462838,3.66728246,143.48,143.47,2.49998999]
[1750740463664,3.66728246,143.49,143.48,2.49998999]
[1750740463862,3.66728246,143.5,143.49,2.49998999]
[1750740464372,29.66728246,143.51,143.49,2.49998999]
[1750740464566,3.66728246,143.51,143.49,2.49998999]
[1750740465070,3.66728246,143.51,143.5,2.49998999]
[1750740468676,3.66728246,143.52,143.5,2.49998999]
[1750740468867,3.66728246,143.52,143.51,2.49998999]
[1750740469471,29.66728246,143.53,143.51,2.49998999]
[1750740470191,29.66728246,143.53,143.48,9.62728246]
[1750740470192,26.0,143.53,143.52,2.49998999]
[1750740470365,31.72712527,143.53,143.52,2.49998999]
[1750740473874,26.0,143.53,143.52,2.49998999]
[1750740474081,31.72712527,143.53,143.52,2.49998999]
[1750740489686,6.46409103,143.57,143.54,2.49998999]
[1750740489884,32.46409103,143.57,143.56,2.49998999]
[1750740490581,26.0,143.57,143.56,2.49998999]
[1750740491270,29.66489731,143.57,143.56,2.49998999]
[1750740491475,21.85025979,143.59,143.56,2.49998999]
[1750740491687,21.85025979,143.59,143.58,2.49998999]
[1750740491875,47.85025979,143.59,143.58,2.49998999]
[1750740492081,41.38616876,143.59,143.58,2.49998999]
[1750740492469,15.38616876,143.59,143.58,2.49998999]
[1750740492686,6.46409103,143.62,143.58,2.49998999]
[1750740492868,3.66489731,143.6,143.59,2.49998999]
[1750740493864,6.46409103,143.65,143.64,2.49998999]
[1750740494064,1.5746,143.69,143.67,2.49998999]
[1750740494283,3.66489731,143.68,143.67,2.49998999]
[1750740494496,18.32448655,143.68,143.66,2.49998999]
[1750740494684,1.5746,143.69,143.67,2.49998999]
[1750740494995,26.0,143.66,143.64,2.49998999]
[1750740495177,3.66489731,143.65,143.63,2.49998999]
[1750740495371,26.0,143.66,143.64,2.49998999]
[1750740495584,1.5746,143.69,143.65,2.49998999]
[1750740495890,26.0,143.68,143.67,2.49998999]
[1750740496502,5.71731301,143.68,143.67,2.49998999]
[1750740496875,31.71731301,143.68,143.67,2.49998999]
[1750740497281,5.71731301,143.68,143.67,2.49998999]
[1750740497881,31.71731301,143.68,143.67,2.49998999]
[1750740499805,31.71731301,143.68,143.66,2.49998999]
[1750740500015,26.0,143.68,143.67,2.49998999]
[1750740501288,31.71731301,143.68,143.67,2.49998999]
[1750740501909,31.71731301,143.68,143.62,28.98]
[1750740501911,37.43462602,143.68,143.66,2.49998999]
[1750740502087,5.71731301,143.67,143.66,2.49998999]
[1750740502698,26.0,143.66,143.65,2.49998999]
[1750740502905,31.71731301,143.66,143.65,2.49998999]
[1750740503616,33.6583518,143.71,143.65,2.49998999]
[1750740503617,26.0,143.67,143.65,2.49998999]
[1750740503790,5.71731301,143.66,143.65,2.49998999]
[1750740505387,5.71731301,143.67,143.66,2.49998999]
[1750740505995,41.00870294,143.71,143.7,2.49998999]
[1750740506192,46.72601595,143.71,143.7,2.49998999]
[1750740509095,46.72601595,143.71,143.69,2.49998999]
[1750740509296,5.71731301,143.7,143.69,2.49998999]
[1750740511111,41.00870294,143.71,143.7,2.49998999]
[1750740511316,46.72601595,143.71,143.7,2.49998999]
[1750740516409,46.72601595,143.71,143.68,2.49998999]
[1750740516621,5.71731301,143.69,143.68,2.49998999]
[1750740517139,5.71731301,143.69,143.67,2.49998999]
[1750740517292,31.71731301,143.68,143.67,2.49998999]
[1750740524123,26.0,143.71,143.67,2.49998999]
[1750740524421,26.0,143.71,143.69,2.49998999]
[1750740524635,5.71731301,143.7,143.69,2.49998999]
[1750740527735,26.0,143.72,143.7,2.49998999]
[1750740527926,5.71731301,143.71,143.7,2.49998999]
[1750740528736,5.71731301,143.76,143.73,2.49998999]
[1750740529035,31.71731301,143.74,143.73,2.49998999]
[1750740530339,26.0,143.74,143.73,2.49998999]
[1750740530541,31.71731301,143.74,143.73,2.49998999]
[1750740530851,26.0,143.74,143.73,2.49998999]
[1750740531045,31.71731301,143.74,143.73,2.49998999]
[1750740531222,26.0,143.74,143.73,2.49998999]
[1750740531423,31.71731301,143.74,143.73,2.49998999]
[1750740535463,6.46409103,143.79,143.76,2.49998999]
[1750740535746,26.0,143.77,143.76,2.49998999]
[1750740536542,6.46409103,143.78,143.76,2.49998999]
[1750740536741,5.71731301,143.77,143.76,2.49998999]
[1750740537046,26.0,143.76,143.75,2.49998999]
[1750740537828,31.71731301,143.76,143.75,2.49998999]
[1750740546153,37.43462602,143.76,143.73,2.49998999]
[1750740546459,5.71731301,143.74,143.73,2.49998999]
[1750740546761,31.71731301,143.76,143.75,2.49998999]
[1750740547054,37.43462602,143.76,143.74,2.49998999]
[1750740547250,5.71731301,143.75,143.74,2.49998999]
[1750740552547,26.0,143.76,143.74,2.49998999]
[1750740552835,26.0,143.76,143.75,2.49998999]
[1750740554065,37.43462602,143.76,143.75,2.49998999]
[1750740554436,26.0,143.76,143.75,2.49998999]
[1750740554645,31.71731301,143.76,143.75,2.49998999]
[1750740557173,6.46409103,143.79,143.77,2.49998999]
[1750740557487,26.0,143.79,143.78,2.49998999]
[1750740558447,31.71731301,143.79,143.78,2.49998999]
[1750740560048,31.71731301,143.79,143.77,2.49998999]
[1750740560244,26.0,143.76,143.75,2.49998999]
[1750740560445,37.43462602,143.76,143.73,2.49998999]
[1750740560676,5.71731301,143.74,143.73,2.49998999]
[1750740561598,5.71731301,143.74,143.72,2.49998999]
[1750740561879,31.71731301,143.76,143.73,2.49998999]
[1750740562173,38.20011781,143.76,143.73,2.49998999]
[1750740562960,5.71731301,143.74,143.73,2.49998999]
[1750740565764,6.4828048,143.77,143.75,2.49998999]
[1750740565970,5.71731301,143.76,143.75,2.49998999]
[1750740567181,32.4828048,143.78,143.75,2.49998999]
[1750740567479,26.0,143.77,143.76,2.49998999]
[1750740567673,31.71731301,143.77,143.76,2.49998999]
[1750740571984,26.0,143.77,143.76,2.49998999]
[1750740572280,31.71731301,143.77,143.76,2.49998999]
[1750740574060,45.12652602,143.77,143.65,2.49998999]
[1750740574303,45.12652602,143.77,143.59,6.0819]
[1750740574304,26.0,143.63,143.59,6.0819]
[1750740574599,5.71731301,143.6,143.56,6.0819]
[1750740574771,5.71731301,143.57,143.56,6.0819]
[1750740578580,26.0,143.61,143.56,6.0819]
[1750740578581,26.0,143.61,143.56,24.73154886]
[1750740578774,5.71731301,143.58,143.56,24.73154886]
[1750740579088,5.19449498,143.66,143.56,24.73154886]
[1750740579290,5.71731301,143.61,143.57,18.64964886]
[1750740579489,5.71731301,143.62,143.57,24.36696187]
[1750740579674,1.5761,143.69,143.58,12.68207133]
[1750740579866,5.71731301,143.62,143.58,6.96475832]
[1750740580067,5.71731301,143.61,143.58,96.36475832]
[1750740580293,1.5761,143.69,143.59,18.64964886]
[1750740580471,5.71731301,143.63,143.59,108.04964886]
[1750740581175,5.71731301,143.62,143.59,108.04964886]
[1750740581688,5.71731301,143.62,143.61,18.64964886]
[1750740582192,31.71731301,143.68,143.61,18.64964886]
[1750740582387,5.71731301,143.63,143.61,18.64964886]
[1750740582596,31.71731301,143.68,143.6,96.3637883]
[1750740582597,5.71731301,143.62,143.6,18.64964886]
[1750740582888,5.71731301,143.61,143.6,18.64964886]
[1750740583388,5.71731301,143.61,143.59,29.18]
[1750740583690,26.0,143.67,143.59,47.82964886]
[1750740583691,5.71731301,143.6,143.59,47.82964886]
[1750740588490,5.71731301,143.6,143.59,29.18]
[1750740591096,5.71731301,143.6,143.57,18.64964886]
[1750740591397,5.71731301,143.58,143.57,18.64964886]
[1750740591781,26.0,143.64,143.57,18.64964886]
[1750740591969,5.71731301,143.58,143.57,108.04964886]
[1750740594800,26.0,143.64,143.57,108.04964886]
[1750740595007,5.71731301,143.59,143.57,108.04964886]
[1750740595598,5.71731301,143.59,143.57,115.01466804]
[1750740596103,5.71731301,143.59,143.58,47.78964886]
[1750740597833,26.0,143.65,143.59,18.64964886]
[1750740597975,5.71731301,143.61,143.59,108.04964886]
[1750740598181,26.0,143.65,143.6,29.14]
[1750740598402,5.71731301,143.61,143.6,29.14]
[1750740603903,5.71731301,143.63,143.61,18.64964886]
[1750740604201,26.0,143.65,143.62,29.1]
[1750740605502,5.71731301,143.63,143.62,29.1]
[1750740607314,26.0,143.68,143.63,18.64964886]
[1750740607515,5.71731301,143.67,143.64,29.08]
[1750740607814,5.71731301,143.65,143.64,29.08]
[1750740608582,26.0,143.69,143.64,29.08]
[1750740608787,5.71731301,143.65,143.64,47.72964886]
[1750740608991,5.71731301,143.66,143.64,137.12964886]
[1750740609210,26.0,143.68,143.64,137.12964886]
[1750740609410,5.14705399,143.73,143.65,24.36696187]
[1750740609612,23.4183571,143.76,143.67,18.64964886]
[1750740609613,5.71731301,143.71,143.67,18.64964886]
[1750740609918,5.71731301,143.71,143.68,29.4]
[1750740610091,5.71731301,143.7,143.68,29.4]
[1750740611214,26.0,143.72,143.68,29.4]
[1750740611396,5.71731301,143.7,143.68,29.4]
[1750740611602,5.71731301,143.69,143.68,29.4]
[1750740612020,26.0,143.72,143.68,29.4]
[1750740612211,5.71731301,143.7,143.68,29.4]
[1750740613009,26.0,143.72,143.68,29.4]
[1750740613010,5.71731301,143.69,143.68,29.4]
[1750740613415,5.71731301,143.69,143.66,29.38]
[1750740613595,5.71731301,143.68,143.66,29.38]
[1750740615707,5.71731301,143.67,143.66,29.38]
[1750740616123,1.616,143.71,143.66,29.38]
[1750740616329,5.71731301,143.67,143.66,29.38]
[1750740616831,5.71731301,143.67,143.64,29.36]
[1750740617124,5.71731301,143.66,143.64,29.36]
[1750740617702,1.616,143.71,143.64,29.36]
[1750740617901,5.71731301,143.66,143.64,29.36]
[1750740618826,26.0,143.68,143.64,29.36]
[1750740619026,5.71731301,143.66,143.64,29.36]
[1750740621434,5.71731301,143.67,143.64,29.36]
[1750740621809,5.71731301,143.67,143.64,36.32170054]
[1750740623032,5.71731301,143.67,143.64,29.36]
[1750740629438,5.71731301,143.68,143.64,29.36]
[1750740629641,5.71731301,143.67,143.64,29.36]
[1750740630139,5.71731301,143.68,143.64,36.32180637]
[1750740631042,26.0,143.69,143.64,36.32180637]
[1750740631247,5.71731301,143.68,143.64,36.32180637]
[1750740632824,5.71731301,143.67,143.64,29.36]
[1750740633030,5.71731301,143.67,143.64,118.76]
[1750740633523,5.71731301,143.68,143.64,118.76]
[1750740639130,5.71731301,143.67,143.64,118.76]
[1750740639546,5.71731301,143.66,143.64,118.76]
[1750740639941,31.17837382,143.69,143.64,118.76]
[1750740640251,5.71731301,143.67,143.64,118.76]
[1750740641025,5.71731301,143.66,143.64,118.76]
[1750740641337,5.71731301,143.67,143.64,118.76]
[1750740642837,5.71731301,143.68,143.64,118.76]
[1750740643251,5.71731301,143.67,143.64,118.76]
[1750740644755,5.71731301,143.67,143.64,29.36]
[1750740647234,5.71731301,143.66,143.64,29.36]
[1750740648340,5.17837382,143.66,143.64,29.36]
[1750740648644,5.71731301,143.66,143.64,29.36]
[1750740649039,10.89568683,143.66,143.64,29.36]
[1750740649242,5.71731301,143.66,143.64,29.36]
[1750740649753,10.89568683,143.65,143.62,6.54]
[1750740649948,5.71731301,143.63,143.62,35.62]
[1750740650144,5.71731301,143.63,143.6,108.04964886]
[1750740650397,5.71731301,143.62,143.6,89.4]
[1750740650558,5.71731301,143.62,143.61,29.08]
[1750740650771,5.71731301,143.62,143.6,29.08]
[1750740650942,5.71731301,143.61,143.59,108.04964886]
[1750740651140,5.71731301,143.6,143.57,6.48]
[1750740651440,5.71731301,143.58,143.57,35.56]
[1750740651649,5.71731301,143.58,143.57,29.08]
[1750740651847,5.71731301,143.58,143.55,89.4]
[1750740652046,5.71731301,143.57,143.56,29.06]
[1750740652947,5.17837382,143.59,143.56,29.06]
[1750740653148,5.71731301,143.57,143.56,29.06]
[1750740653559,5.71731301,143.57,143.54,116.00794886]
[1750740653560,5.71731301,143.57,143.54,114.50184886]
[1750740653754,5.71731301,143.6,143.55,29.08]
[1750740653755,5.71731301,143.56,143.55,29.08]
[1750740654440,5.71731301,143.56,143.53,18.64964886]
[1750740654757,5.71731301,143.56,143.54,29.08]
[1750740655060,5.71731301,143.56,143.53,89.4]
[1750740655262,5.71731301,143.56,143.54,29.08]
[1750740656142,26.0,143.57,143.54,29.08]
[1750740656344,31.71731301,143.57,143.54,29.08]
[1750740659273,1.5856,143.6,143.54,36.0464539]
[1750740659441,5.71731301,143.58,143.54,125.4464539]
[1750740663756,5.71731301,143.58,143.55,18.64964886]
[1750740663959,5.71731301,143.58,143.56,29.02]
[1750740664172,5.71731301,143.59,143.56,29.02]
[1750740664474,5.71731301,143.59,143.56,118.42]
[1750740665350,5.71731301,143.57,143.56,118.42]
[1750740665558,5.71731301,143.57,143.56,29.02]
[1750740665762,5.71731301,143.57,143.55,29.02]
[1750740665957,5.71731301,143.58,143.55,29.02]
[1750740668467,5.71731301,143.57,143.55,29.02]
[1750740669875,5.71731301,143.58,143.55,29.02]